[Event "*** Titled Tuesday 3|2 Blitz"]
[Site "Chess.com"]
[Date "2015.06.02"]
[Round "7"]
[White "David_Klein"]
[Black "Recombinant"]
[Result "1-0"]
[WhiteElo "2275"]
[BlackElo "2115"]
[TimeControl "180+2"]
[EndTime "12:26:49 PDT"]
[Termination "David_Klein won on time"]

1. e4 {[%clk 0:03:01.9]} 1... c5 {[%clk 0:03:00.2]} 2. Nf3 {[%clk 0:03:02.9]}
2... d6 {[%clk 0:03:00.4]} 3. d4 {[%clk 0:03:04]} 3... cxd4 {[%clk 0:03:01.5]}
4. Nxd4 {[%clk 0:03:05.9]} 4... Nf6 {[%clk 0:03:02.3]} 5. Nc3 {[%clk 0:03:06.7]}
5... g6 {[%clk 0:03:03]} 6. f4 {[%clk 0:03:04.5]} 6... Nc6 {[%clk 0:03:03.4]} 7.
Nf3 {[%clk 0:03:05.5]} 7... Bg7 {[%clk 0:02:53.3]} 8. Bd3 {[%clk 0:03:06.5]}
8... O-O {[%clk 0:02:53.1]} 9. O-O {[%clk 0:03:07.6]} 9... Bg4 {[%clk 0:02:54]}
10. Be3 {[%clk 0:03:08.5]} 10... e5 {[%clk 0:02:50.8]} 11. h3 {[%clk 0:03:04.6]}
11... Bxf3 {[%clk 0:02:41.1]} 12. Qxf3 {[%clk 0:03:06.5]} 12... exf4 {[%clk
0:02:35.9]} 13. Qxf4 {[%clk 0:03:06.4]} 13... Ne5 {[%clk 0:02:28.7]} 14. Rad1
{[%clk 0:03:05.1]} 14... Qa5 {[%clk 0:02:22.4]} 15. a3 {[%clk 0:03:03.8]} 15...
Nfd7 {[%clk 0:02:16.3]} 16. Kh1 {[%clk 0:03:02.1]} 16... Nc5 {[%clk 0:01:48.2]}
17. Nd5 {[%clk 0:03:01.7]} 17... Ne6 {[%clk 0:01:39.8]} 18. Nf6+ {[%clk
0:02:52.1]} 18... Kh8 {[%clk 0:01:15.5]} 19. Qh4 {[%clk 0:02:51.7]} 19... h5
{[%clk 0:01:16.6]} 20. Rf5 {[%clk 0:02:48.6]} 20... Bxf6 {[%clk 0:00:35.7]} 21.
Qxf6+ {[%clk 0:02:47.9]} 21... Kh7 {[%clk 0:00:24.7]} 22. Rdf1 {[%clk
0:02:45.7]} 22... Qd8 {[%clk 0:00:20.1]} 23. Rxh5+ {[%clk 0:02:26.5]} 23... gxh5
{[%clk 0:00:21]} 24. Qh6+ {[%clk 0:02:27.7]} 24... Kg8 {[%clk 0:00:22.1]} 25.
Rf5 {[%clk 0:02:19.2]} 25... Ng7 {[%clk 0:00:18.5]} 26. Rg5 {[%clk 0:01:50.9]}
26... Ng6 {[%clk 0:00:15.9]} 27. Bd4 {[%clk 0:01:44.4]} 27... f6 {[%clk
0:00:04.3]} 28. Bc4+ {[%clk 0:01:37.9]} 28... d5 {[%clk 0:00:02.3]} 29. Rxg6
{[%clk 0:01:37.4]} 1-0

[Event "*** Titled Tuesday 3|2 Blitz"]
[Site "Chess.com"]
[Date "2015.06.02"]
[Round "7"]
[White "Tilicheev_Viacheslav"]
[Black "MinhGTrAn"]
[Result "1-0"]
[WhiteElo "2449"]
[BlackElo "2566"]
[TimeControl "180+2"]
[EndTime "12:27:12 PDT"]
[Termination "Tilicheev_Viacheslav won by checkmate"]

1. e4 {[%clk 0:02:51.5]} 1... d6 {[%clk 0:03:01.1]} 2. d4 {[%clk 0:02:51.9]}
2... Nf6 {[%clk 0:03:02.8]} 3. Nc3 {[%clk 0:02:53.2]} 3... e5 {[%clk 0:03:04.5]}
4. Nf3 {[%clk 0:02:54.4]} 4... Nbd7 {[%clk 0:03:05.5]} 5. g4 {[%clk 0:02:55.6]}
5... Nxg4 {[%clk 0:03:06.2]} 6. Rg1 {[%clk 0:02:55.2]} 6... exd4 {[%clk
0:03:06.8]} 7. Qxd4 {[%clk 0:02:35.7]} 7... Nde5 {[%clk 0:03:04.8]} 8. Nxe5
{[%clk 0:02:34]} 8... dxe5 {[%clk 0:02:52]} 9. Qxd8+ {[%clk 0:02:35]} 9... Kxd8
{[%clk 0:02:53.9]} 10. Bg5+ {[%clk 0:02:36.6]} 10... f6 {[%clk 0:02:52]} 11.
Rd1+ {[%clk 0:02:32.7]} 11... Bd6 {[%clk 0:02:48.4]} 12. Bc1 {[%clk 0:02:24.5]}
12... Nxh2 {[%clk 0:02:03.4]} 13. Rxg7 {[%clk 0:01:59.3]} 13... Nf3+ {[%clk
0:01:41]} 14. Ke2 {[%clk 0:01:52]} 14... Nd4+ {[%clk 0:01:42.9]} 15. Kd3 {[%clk
0:01:49.3]} 15... Be6 {[%clk 0:00:35]} 16. f4 {[%clk 0:01:45.6]} 16... Bf8
{[%clk 0:00:26.8]} 17. Rg1 {[%clk 0:01:41.2]} 17... c6 {[%clk 0:00:25.4]} 18.
Ne2 {[%clk 0:01:36.5]} 18... Nxe2 {[%clk 0:00:18.8]} 19. Kxe2+ {[%clk
0:01:38.4]} 19... Kc7 {[%clk 0:00:20.7]} 20. Bd2 {[%clk 0:01:25.3]} 20... h5
{[%clk 0:00:19.4]} 21. fxe5 {[%clk 0:01:23.3]} 21... fxe5 {[%clk 0:00:17.6]} 22.
Bc3 {[%clk 0:01:25.2]} 22... Bd6 {[%clk 0:00:12.9]} 23. Rg7+ {[%clk 0:01:23.2]}
23... Bd7 {[%clk 0:00:10.4]} 24. Bxe5 {[%clk 0:01:24.2]} 24... Bxe5 {[%clk
0:00:09.5]} 25. Rdxd7+ {[%clk 0:01:23.7]} 25... Kb6 {[%clk 0:00:11.1]} 26. Rxb7+
{[%clk 0:01:24]} 26... Kc5 {[%clk 0:00:12.7]} 27. Rgd7 {[%clk 0:01:14.5]} 27...
Rab8 {[%clk 0:00:10.9]} 28. b4+ {[%clk 0:01:12.2]} 28... Kc4 {[%clk 0:00:12.3]}
29. Kd2# {[%clk 0:01:13.7]} 1-0

[Event "*** Titled Tuesday 3|2 Blitz"]
[Site "Chess.com"]
[Date "2015.06.02"]
[Round "7"]
[White "E-Shaposhnikov"]
[Black "Aragon"]
[Result "1-0"]
[WhiteElo "2366"]
[BlackElo "2116"]
[TimeControl "180+2"]
[EndTime "12:27:19 PDT"]
[Termination "E-Shaposhnikov won on time"]

1. e3 {[%clk 0:02:59.3]} 1... d5 {[%clk 0:02:59.8]} 2. Nf3 {[%clk 0:02:58.6]}
2... Nf6 {[%clk 0:02:56.7]} 3. b3 {[%clk 0:02:58]} 3... c5 {[%clk 0:02:53.1]} 4.
Ba3 {[%clk 0:02:43.4]} 4... b6 {[%clk 0:02:34.7]} 5. d4 {[%clk 0:02:40.7]} 5...
e6 {[%clk 0:02:33.6]} 6. c4 {[%clk 0:02:37.6]} 6... dxc4 {[%clk 0:02:25.5]} 7.
Bxc4 {[%clk 0:02:23.2]} 7... Nbd7 {[%clk 0:02:23.1]} 8. O-O {[%clk 0:01:43.4]}
8... Bb7 {[%clk 0:02:00.7]} 9. Nc3 {[%clk 0:01:24.1]} 9... Be7 {[%clk
0:01:21.3]} 10. dxc5 {[%clk 0:00:57.2]} 10... Bxc5 {[%clk 0:01:09.1]} 11. Bxc5
{[%clk 0:00:57.3]} 11... Nxc5 {[%clk 0:01:09.1]} 12. Bb5+ {[%clk 0:00:44.5]}
12... Ke7 {[%clk 0:00:50.2]} 13. Nd4 {[%clk 0:00:43.7]} 13... Rc8 {[%clk
0:00:42.9]} 14. Rc1 {[%clk 0:00:36.3]} 14... Nd5 {[%clk 0:00:18.2]} 15. Qg4
{[%clk 0:00:25.8]} 15... Nxc3 {[%clk 0:00:10.2]} 16. Rxc3 {[%clk 0:00:24.8]}
16... Qd5 {[%clk 0:00:09.4]} 17. Bc4 {[%clk 0:00:25]} 17... Qe4 {[%clk
0:00:05.5]} 18. Qg5+ {[%clk 0:00:24.6]} 1-0

[Event "*** Titled Tuesday 3|2 Blitz"]
[Site "Chess.com"]
[Date "2015.06.02"]
[Round "7"]
[White "pedromartinez91"]
[Black "Daniel_Fridman"]
[Result "0-1"]
[WhiteElo "2126"]
[BlackElo "2532"]
[TimeControl "180+2"]
[EndTime "12:27:26 PDT"]
[Termination "Daniel_Fridman won by resignation"]

1. Nf3 {[%clk 0:03:01.9]} 1... Nf6 {[%clk 0:02:45.4]} 2. g3 {[%clk 0:03:02.8]}
2... b5 {[%clk 0:02:45]} 3. Bg2 {[%clk 0:03:03.5]} 3... Bb7 {[%clk 0:02:46]} 4.
O-O {[%clk 0:03:04.8]} 4... c5 {[%clk 0:02:47.3]} 5. a4 {[%clk 0:03:03.1]} 5...
b4 {[%clk 0:02:47.8]} 6. d4 {[%clk 0:03:03.7]} 6... e6 {[%clk 0:02:47.6]} 7.
dxc5 {[%clk 0:03:02.6]} 7... Bxc5 {[%clk 0:02:49.3]} 8. Nbd2 {[%clk 0:03:03.9]}
8... O-O {[%clk 0:02:49.3]} 9. Nb3 {[%clk 0:03:03]} 9... Be7 {[%clk 0:02:47.5]}
10. a5 {[%clk 0:02:48]} 10... Na6 {[%clk 0:02:46.7]} 11. Be3 {[%clk 0:02:47.2]}
11... d6 {[%clk 0:02:46]} 12. Nfd4 {[%clk 0:02:47.1]} 12... Qc8 {[%clk
0:02:44.9]} 13. Bh3 {[%clk 0:02:23.6]} 13... Qc4 {[%clk 0:02:31.1]} 14. Qd3
{[%clk 0:02:20.6]} 14... Qd5 {[%clk 0:02:31.6]} 15. Nf3 {[%clk 0:02:09.7]} 15...
Qh5 {[%clk 0:02:29.2]} 16. Bg2 {[%clk 0:02:09.3]} 16... Ng4 {[%clk 0:02:29.5]}
17. h3 {[%clk 0:02:10]} 17... Nxe3 {[%clk 0:02:30.4]} 18. Qxe3 {[%clk
0:02:10.1]} 18... Rfc8 {[%clk 0:02:30.8]} 19. Rfc1 {[%clk 0:02:08.7]} 19... Rc7
{[%clk 0:02:27.4]} 20. Nbd4 {[%clk 0:02:05.6]} 20... Rac8 {[%clk 0:02:25.4]} 21.
Qd2 {[%clk 0:01:45.9]} 21... Qc5 {[%clk 0:02:10.3]} 22. Nb3 {[%clk 0:01:45.7]}
22... Qd5 {[%clk 0:02:11]} 23. Ne1 {[%clk 0:01:42]} 23... Qxd2 {[%clk 0:02:11]}
24. Nxd2 {[%clk 0:01:43.3]} 24... Bxg2 {[%clk 0:02:12.6]} 25. Kxg2 {[%clk
0:01:44.6]} 25... Bf6 {[%clk 0:02:13.8]} 26. Rcb1 {[%clk 0:01:41.9]} 26... Nc5
{[%clk 0:02:05.2]} 27. Ra2 {[%clk 0:01:41.4]} 27... Rc6 {[%clk 0:02:04.7]} 28.
Kf3 {[%clk 0:01:42.1]} 28... Ra6 {[%clk 0:02:04.9]} 29. Ne4 {[%clk 0:01:39.4]}
29... Nxe4 {[%clk 0:02:03.5]} 30. Kxe4 {[%clk 0:01:40]} 30... Rc5 {[%clk
0:02:04.6]} 31. Rba1 {[%clk 0:01:37.7]} 31... Rac6 {[%clk 0:02:05.7]} 32. e3
{[%clk 0:01:33.2]} 32... Rb5 {[%clk 0:02:06.5]} 33. Kd3 {[%clk 0:01:33.5]} 33...
b3 {[%clk 0:02:07.2]} 34. c4 {[%clk 0:01:25.6]} 34... Rb4 {[%clk 0:01:48.8]} 35.
Ra4 {[%clk 0:01:26.9]} 35... Rcxc4 {[%clk 0:01:48.8]} 36. Rxb4 {[%clk
0:01:20.3]} 36... Rxb4 {[%clk 0:01:50.7]} 37. Rc1 {[%clk 0:01:21.8]} 37... g6
{[%clk 0:01:50.5]} 38. Rc7 {[%clk 0:01:20.2]} 38... Bxb2 {[%clk 0:01:50.3]} 39.
Rxa7 {[%clk 0:01:21]} 39... Be5 {[%clk 0:01:48.9]} 40. f4 {[%clk 0:01:03.3]}
40... b2 {[%clk 0:01:49.4]} 41. fxe5 {[%clk 0:01:01.4]} 41... b1=Q+ {[%clk
0:01:50]} 42. Nc2 {[%clk 0:01:02.8]} 0-1

[Event "*** Titled Tuesday 3|2 Blitz"]
[Site "Chess.com"]
[Date "2015.06.02"]
[Round "7"]
[White "kleinebeer98"]
[Black "goldaxe"]
[Result "1-0"]
[WhiteElo "2278"]
[BlackElo "2153"]
[TimeControl "180+2"]
[EndTime "12:27:26 PDT"]
[Termination "kleinebeer98 won on time"]

1. e4 {[%clk 0:03:01.9]} 1... e5 {[%clk 0:03:00.2]} 2. Bc4 {[%clk 0:03:00.7]}
2... Nf6 {[%clk 0:02:59.1]} 3. d3 {[%clk 0:02:59.6]} 3... Nc6 {[%clk 0:02:57.9]}
4. Nc3 {[%clk 0:02:59.7]} 4... Na5 {[%clk 0:02:48.8]} 5. Nge2 {[%clk 0:02:44.9]}
5... Be7 {[%clk 0:02:41]} 6. O-O {[%clk 0:02:42.8]} 6... O-O {[%clk 0:02:39.3]}
7. Ng3 {[%clk 0:02:40]} 7... d6 {[%clk 0:02:37.3]} 8. h3 {[%clk 0:02:08.4]} 8...
Be6 {[%clk 0:02:35.3]} 9. Bxe6 {[%clk 0:02:06.7]} 9... fxe6 {[%clk 0:02:37]} 10.
Be3 {[%clk 0:02:05.5]} 10... Nc6 {[%clk 0:02:37.3]} 11. d4 {[%clk 0:02:00.6]}
11... exd4 {[%clk 0:02:35.8]} 12. Bxd4 {[%clk 0:02:02.5]} 12... Qe8 {[%clk
0:02:20.7]} 13. Be3 {[%clk 0:01:57.5]} 13... Qg6 {[%clk 0:02:20.2]} 14. Qe2
{[%clk 0:01:56.6]} 14... Rae8 {[%clk 0:01:59.4]} 15. Kh2 {[%clk 0:01:44.4]}
15... h5 {[%clk 0:01:40.9]} 16. Qc4 {[%clk 0:01:41.1]} 16... Bd8 {[%clk
0:01:14.4]} 17. f4 {[%clk 0:01:34.8]} 17... h4 {[%clk 0:01:12.6]} 18. Nge2
{[%clk 0:01:35.2]} 18... Nxe4 {[%clk 0:01:02.4]} 19. Qxe4 {[%clk 0:01:34]} 19...
Rf5 {[%clk 0:00:44.2]} 20. Nd4 {[%clk 0:01:25]} 20... Nxd4 {[%clk 0:00:34.7]}
21. Bxd4 {[%clk 0:01:26.9]} 21... Ref8 {[%clk 0:00:19.9]} 22. Rae1 {[%clk
0:01:21.3]} 22... e5 {[%clk 0:00:18.9]} 23. fxe5 {[%clk 0:01:22.3]} 23... Qg3+
{[%clk 0:00:13.7]} 24. Kg1 {[%clk 0:01:20.4]} 24... Rxf1+ {[%clk 0:00:07.4]} 25.
Rxf1 {[%clk 0:01:22.3]} 25... Rxf1+ {[%clk 0:00:07.3]} 26. Kxf1 {[%clk
0:01:24.2]} 26... Bg5 {[%clk 0:00:06.2]} 27. exd6 {[%clk 0:01:19.6]} 27... cxd6
{[%clk 0:00:03.7]} 28. Nd5 {[%clk 0:01:14.4]} 28... Bd2 {[%clk 0:00:02]} 29.
Ne7+ {[%clk 0:01:12.9]} 29... Kf7 {[%clk 0:00:02.7]} 30. Nf5 {[%clk 0:01:10.6]}
1-0

[Event "*** Titled Tuesday 3|2 Blitz"]
[Site "Chess.com"]
[Date "2015.06.02"]
[Round "7"]
[White "PowerThinking2650"]
[Black "MrHenriksson"]
[Result "1-0"]
[WhiteElo "2072"]
[BlackElo "2035"]
[TimeControl "180+2"]
[EndTime "12:27:38 PDT"]
[Termination "PowerThinking2650 won by resignation"]

1. e4 {[%clk 0:03:01.9]} 1... c6 {[%clk 0:03:00.9]} 2. d4 {[%clk 0:03:01.6]}
2... d5 {[%clk 0:03:01.3]} 3. Nc3 {[%clk 0:03:03]} 3... dxe4 {[%clk 0:03:01.2]}
4. Nxe4 {[%clk 0:03:04]} 4... Nf6 {[%clk 0:03:02.7]} 5. Nxf6+ {[%clk 0:03:04.5]}
5... gxf6 {[%clk 0:03:03.5]} 6. c3 {[%clk 0:03:05.6]} 6... Qd5 {[%clk 0:03:03]}
7. Nf3 {[%clk 0:02:53.1]} 7... Bg4 {[%clk 0:03:02.8]} 8. Be2 {[%clk 0:02:53.1]}
8... Nd7 {[%clk 0:03:00.5]} 9. O-O {[%clk 0:02:51.6]} 9... Rg8 {[%clk 0:03:00]}
10. Kh1 {[%clk 0:02:50.5]} 10... O-O-O {[%clk 0:02:33.2]} 11. Bf4 {[%clk
0:02:48.5]} 11... Qf5 {[%clk 0:02:17.1]} 12. Bg3 {[%clk 0:02:44.9]} 12... e5
{[%clk 0:02:13.2]} 13. Qa4 {[%clk 0:02:38]} 13... Bxf3 {[%clk 0:01:56.6]} 14.
Bxf3 {[%clk 0:02:32.1]} 14... e4 {[%clk 0:01:57.5]} 15. Qxa7 {[%clk 0:02:26.6]}
15... Rxg3 {[%clk 0:01:57.1]} 16. fxg3 {[%clk 0:02:11.2]} 16... exf3 {[%clk
0:01:57.4]} 17. Rxf3 {[%clk 0:02:10.6]} 17... Qc2 {[%clk 0:01:51.8]} 18. Qa8+
{[%clk 0:01:42.7]} 18... Nb8 {[%clk 0:01:51.9]} 19. Rxf6 {[%clk 0:01:40.6]}
19... Qxb2 {[%clk 0:01:46.7]} 20. Raf1 {[%clk 0:01:38.9]} 20... Bd6 {[%clk
0:00:25.6]} 21. Rxf7 {[%clk 0:01:38.9]} 21... Bc7 {[%clk 0:00:22.7]} 22. R7f3
{[%clk 0:01:20.6]} 22... h5 {[%clk 0:00:22.3]} 23. Qa4 {[%clk 0:01:13.4]} 23...
Na6 {[%clk 0:00:21]} 24. Qc4 {[%clk 0:01:12.8]} 24... Qd2 {[%clk 0:00:20.8]} 25.
Rf8 {[%clk 0:01:06.6]} 25... Kb8 {[%clk 0:00:16.9]} 26. Rxd8+ {[%clk 0:01:04.4]}
26... Bxd8 {[%clk 0:00:17.9]} 27. Qg8 {[%clk 0:01:03.8]} 27... Kc7 {[%clk
0:00:17.5]} 28. Qf7+ {[%clk 0:01:01.4]} 28... Kb6 {[%clk 0:00:18]} 29. Rb1+
{[%clk 0:01:00.1]} 29... Ka5 {[%clk 0:00:15.1]} 30. Qxb7 {[%clk 0:00:58.1]}
30... Bc7 {[%clk 0:00:12.6]} 31. Qxc6 {[%clk 0:00:57.2]} 1-0

[Event "*** Titled Tuesday 3|2 Blitz"]
[Site "Chess.com"]
[Date "2015.06.02"]
[Round "7"]
[White "DanielNaroditsky"]
[Black "Hikaru"]
[Result "0-1"]
[WhiteElo "2551"]
[BlackElo "2813"]
[TimeControl "180+2"]
[EndTime "12:27:46 PDT"]
[Termination "Hikaru won by resignation"]

1. Nf3 {[%clk 0:03:01.9]} 1... f5 {[%clk 0:03:00.1]} 2. d3 {[%clk 0:02:59.9]}
2... Nc6 {[%clk 0:03:00.8]} 3. e4 {[%clk 0:03:01]} 3... e5 {[%clk 0:03:02.1]} 4.
Nc3 {[%clk 0:03:00.4]} 4... Nf6 {[%clk 0:03:02.2]} 5. Bg5 {[%clk 0:02:50.9]}
5... Bb4 {[%clk 0:03:01.4]} 6. exf5 {[%clk 0:02:40.9]} 6... d5 {[%clk
0:03:01.3]} 7. d4 {[%clk 0:02:42]} 7... e4 {[%clk 0:02:12.3]} 8. Ne5 {[%clk
0:02:42.7]} 8... O-O {[%clk 0:02:13.8]} 9. Bb5 {[%clk 0:02:35.4]} 9... Ne7
{[%clk 0:02:13.5]} 10. g4 {[%clk 0:02:31]} 10... c6 {[%clk 0:02:14.7]} 11. Be2
{[%clk 0:02:30.8]} 11... Bd6 {[%clk 0:02:13.1]} 12. f4 {[%clk 0:02:24.2]} 12...
exf3 {[%clk 0:02:08.6]} 13. Bxf3 {[%clk 0:02:23.2]} 13... Qb6 {[%clk 0:02:09.7]}
14. Na4 {[%clk 0:02:18.2]} 14... Qa5+ {[%clk 0:02:08.3]} 15. c3 {[%clk
0:02:19.6]} 15... Qc7 {[%clk 0:01:55.7]} 16. Qe2 {[%clk 0:02:20.7]} 16... Re8
{[%clk 0:01:52.8]} 17. O-O-O {[%clk 0:02:19.4]} 17... Qa5 {[%clk 0:01:30.6]} 18.
Nc5 {[%clk 0:01:56.7]} 18... Qxa2 {[%clk 0:01:31.6]} 19. Bxf6 {[%clk 0:01:42]}
19... gxf6 {[%clk 0:01:27.6]} 20. Ned7 {[%clk 0:01:43.1]} 20... Bxd7 {[%clk
0:01:19.5]} 21. Nxd7 {[%clk 0:01:43.8]} 21... Nxf5 {[%clk 0:01:21]} 22. Nxf6+
{[%clk 0:01:38.3]} 22... Kf7 {[%clk 0:01:22.4]} 23. Nxe8 {[%clk 0:01:36.1]}
23... Rxe8 {[%clk 0:01:24.3]} 24. Qxe8+ {[%clk 0:01:03.9]} 24... Kxe8 {[%clk
0:01:24.9]} 25. gxf5 {[%clk 0:01:05.6]} 25... a5 {[%clk 0:01:23.4]} 26. Rde1+
{[%clk 0:00:45.4]} 26... Kd8 {[%clk 0:01:24.3]} 27. Kc2 {[%clk 0:00:40.6]} 27...
a4 {[%clk 0:01:25.2]} 28. Rb1 {[%clk 0:00:39.9]} 28... Qb3+ {[%clk 0:01:25.3]}
29. Kd3 {[%clk 0:00:40.1]} 29... Qc4+ {[%clk 0:01:25.6]} 30. Kc2 {[%clk
0:00:41.4]} 30... Qb3+ {[%clk 0:01:24.9]} 31. Kd3 {[%clk 0:00:41.8]} 31... b5
{[%clk 0:01:21.8]} 32. Rhe1 {[%clk 0:00:34.9]} 32... b4 {[%clk 0:01:19.4]} 33.
Re6 {[%clk 0:00:28.2]} 33... bxc3 {[%clk 0:01:17.5]} 34. Rxd6+ {[%clk
0:00:13.4]} 34... Kc7 {[%clk 0:01:16.2]} 35. Rxc6+ {[%clk 0:00:14.9]} 35... Kxc6
{[%clk 0:01:17.5]} 36. Rc1 {[%clk 0:00:16.6]} 36... c2+ {[%clk 0:01:15.1]} 37.
Kd2 {[%clk 0:00:16.6]} 37... Qxf3 {[%clk 0:01:15.8]} 38. Rxc2+ {[%clk
0:00:17.8]} 38... Kd6 {[%clk 0:01:17.1]} 39. h4 {[%clk 0:00:16.7]} 39... Qxf5
{[%clk 0:01:16.1]} 40. h5 {[%clk 0:00:18.4]} 40... Qxh5 {[%clk 0:01:16.4]} 41.
Kc3 {[%clk 0:00:19.8]} 41... Qf3+ {[%clk 0:01:17.3]} 42. Kd2 {[%clk 0:00:20.9]}
42... Qb3 {[%clk 0:01:19.2]} 43. Kc1 {[%clk 0:00:22.1]} 43... Qxc2+ {[%clk
0:01:19.7]} 44. Kxc2 {[%clk 0:00:23.3]} 44... h5 {[%clk 0:01:21.2]} 0-1

[Event "*** Titled Tuesday 3|2 Blitz"]
[Site "Chess.com"]
[Date "2015.06.02"]
[Round "7"]
[White "jlandaw"]
[Black "GMNeiksans"]
[Result "0-1"]
[WhiteElo "2328"]
[BlackElo "2506"]
[TimeControl "180+2"]
[EndTime "12:27:59 PDT"]
[Termination "GMNeiksans won by resignation"]

1. e4 {[%clk 0:03:01.9]} 1... c5 {[%clk 0:03:00.1]} 2. Nc3 {[%clk 0:03:01.9]}
2... d6 {[%clk 0:02:58.7]} 3. g3 {[%clk 0:03:03.2]} 3... g6 {[%clk 0:02:59.6]}
4. Bg2 {[%clk 0:03:04.5]} 4... Bg7 {[%clk 0:03:01.1]} 5. d3 {[%clk 0:03:06]}
5... Nc6 {[%clk 0:03:02.4]} 6. f4 {[%clk 0:03:07.3]} 6... e6 {[%clk 0:03:03.4]}
7. Nf3 {[%clk 0:03:08.7]} 7... Nge7 {[%clk 0:03:04.6]} 8. O-O {[%clk 0:03:10.1]}
8... O-O {[%clk 0:03:05.7]} 9. Be3 {[%clk 0:03:09.9]} 9... b6 {[%clk 0:03:07]}
10. d4 {[%clk 0:03:09.1]} 10... d5 {[%clk 0:03:08]} 11. exd5 {[%clk 0:02:53]}
11... exd5 {[%clk 0:03:08.5]} 12. Bf2 {[%clk 0:02:50.9]} 12... Nf5 {[%clk
0:03:02.8]} 13. dxc5 {[%clk 0:02:37.4]} 13... d4 {[%clk 0:03:03.8]} 14. Ne4
{[%clk 0:02:22.9]} 14... Rb8 {[%clk 0:02:47.8]} 15. cxb6 {[%clk 0:01:40.8]}
15... Qxb6 {[%clk 0:02:47.2]} 16. Rb1 {[%clk 0:01:37.6]} 16... Be6 {[%clk
0:02:43.3]} 17. b3 {[%clk 0:01:28.8]} 17... Ne3 {[%clk 0:02:39.1]} 18. Bxe3
{[%clk 0:01:29.3]} 18... dxe3 {[%clk 0:02:41]} 19. Qe2 {[%clk 0:01:30.6]} 19...
Nb4 {[%clk 0:02:35.1]} 20. c3 {[%clk 0:01:14.6]} 20... Nd5 {[%clk 0:02:09.8]}
21. Ne5 {[%clk 0:01:14.1]} 21... Bf5 {[%clk 0:02:06.9]} 22. Rbc1 {[%clk
0:01:06.9]} 22... Rfe8 {[%clk 0:01:57.8]} 23. Nc4 {[%clk 0:01:05.1]} 23... Qa6
{[%clk 0:01:52.7]} 24. Ned6 {[%clk 0:00:57.3]} 24... Nxc3 {[%clk 0:01:50.6]} 25.
Rxc3 {[%clk 0:00:54.1]} 25... Bxc3 {[%clk 0:01:51.1]} 26. Nxe8 {[%clk
0:00:54.7]} 26... Rxe8 {[%clk 0:01:52.2]} 27. Bd5 {[%clk 0:00:40.5]} 27... Bd2
{[%clk 0:01:25.4]} 28. Bxf7+ {[%clk 0:00:36.5]} 28... Kxf7 {[%clk 0:01:18.1]}
29. Ne5+ {[%clk 0:00:37.5]} 29... Rxe5 {[%clk 0:01:19.5]} 30. Qxa6 {[%clk
0:00:38.6]} 30... Re7 {[%clk 0:01:15.8]} 31. Qe2 {[%clk 0:00:24.2]} 31... h5
{[%clk 0:01:16.3]} 32. Rd1 {[%clk 0:00:19.3]} 32... Rd7 {[%clk 0:01:06.8]} 33.
Qc4+ {[%clk 0:00:19.9]} 33... Be6 {[%clk 0:01:05.7]} 34. Qc6 {[%clk 0:00:21]}
34... e2 {[%clk 0:01:03]} 35. Rf1 {[%clk 0:00:20.9]} 35... Be3+ {[%clk
0:01:00.8]} 36. Kg2 {[%clk 0:00:19.4]} 36... Bh3+ {[%clk 0:00:52.5]} 0-1

[Event "*** Titled Tuesday 3|2 Blitz"]
[Site "Chess.com"]
[Date "2015.06.02"]
[Round "7"]
[White "AnastasiaProtopopova"]
[Black "aripov96"]
[Result "0-1"]
[WhiteElo "1883"]
[BlackElo "2251"]
[TimeControl "180+2"]
[EndTime "12:28:26 PDT"]
[Termination "aripov96 won on time"]

1. Nf3 {[%clk 0:03:01.9]} 1... c5 {[%clk 0:02:57.2]} 2. c4 {[%clk 0:03:02.6]}
2... g6 {[%clk 0:02:57.7]} 3. Nc3 {[%clk 0:03:01.6]} 3... Bg7 {[%clk 0:02:58.3]}
4. g3 {[%clk 0:03:02]} 4... Nc6 {[%clk 0:02:59.4]} 5. Bg2 {[%clk 0:03:02.9]}
5... e6 {[%clk 0:03:00.2]} 6. O-O {[%clk 0:03:01.7]} 6... Nge7 {[%clk
0:03:01.6]} 7. d4 {[%clk 0:03:00.7]} 7... cxd4 {[%clk 0:02:59.5]} 8. Nb5 {[%clk
0:03:01.2]} 8... O-O {[%clk 0:02:58.4]} 9. Nbxd4 {[%clk 0:03:00.6]} 9... d5
{[%clk 0:02:59]} 10. Nxc6 {[%clk 0:02:46]} 10... bxc6 {[%clk 0:02:59.3]} 11.
cxd5 {[%clk 0:02:43.8]} 11... cxd5 {[%clk 0:02:58.8]} 12. Qb3 {[%clk 0:02:34.8]}
12... Ba6 {[%clk 0:02:57.5]} 13. Re1 {[%clk 0:02:29.9]} 13... Rb8 {[%clk
0:02:50.5]} 14. Qa3 {[%clk 0:02:29.3]} 14... Rb6 {[%clk 0:02:35.5]} 15. Rb1
{[%clk 0:02:18.4]} 15... Nf5 {[%clk 0:02:29.1]} 16. Bd2 {[%clk 0:02:12]} 16...
Rc6 {[%clk 0:02:22.9]} 17. Ba5 {[%clk 0:02:07.2]} 17... Qc8 {[%clk 0:02:17.9]}
18. e4 {[%clk 0:01:44.7]} 18... dxe4 {[%clk 0:02:15.7]} 19. Rxe4 {[%clk
0:01:38]} 19... Nd6 {[%clk 0:02:03.8]} 20. Ree1 {[%clk 0:01:11.5]} 20... Nc4
{[%clk 0:02:03.3]} 21. Qb4 {[%clk 0:01:10.3]} 21... Nxa5 {[%clk 0:01:40.7]} 22.
Qxa5 {[%clk 0:01:10.2]} 22... Bd3 {[%clk 0:01:41.9]} 23. Rbd1 {[%clk 0:01:08.8]}
23... Bc2 {[%clk 0:01:42.8]} 24. Nd4 {[%clk 0:01:01.3]} 24... Rc5 {[%clk
0:01:27.5]} 25. Qxa7 {[%clk 0:00:40.2]} 25... Bxd1 {[%clk 0:01:25.5]} 26. Rxd1
{[%clk 0:00:42.1]} 26... Bxd4 {[%clk 0:01:14.6]} 27. Rxd4 {[%clk 0:00:39.9]}
27... Rc1+ {[%clk 0:01:16.2]} 28. Bf1 {[%clk 0:00:40.1]} 28... e5 {[%clk
0:01:17.7]} 29. Rh4 {[%clk 0:00:32.8]} 29... g5 {[%clk 0:01:10.1]} 30. Qe3
{[%clk 0:00:23.5]} 30... f6 {[%clk 0:01:08.5]} 31. Qb3+ {[%clk 0:00:18.1]} 31...
Kg7 {[%clk 0:01:04.3]} 32. Rb4 {[%clk 0:00:13.6]} 32... Rf7 {[%clk 0:00:53.6]}
33. Kg2 {[%clk 0:00:12.5]} 33... Qc6+ {[%clk 0:00:50.7]} 34. f3 {[%clk
0:00:11.6]} 34... Rc2+ {[%clk 0:00:47.9]} 35. Kh3 {[%clk 0:00:10.6]} 35... Qd7+
{[%clk 0:00:45.3]} 36. g4 {[%clk 0:00:09.9]} 36... Qd2 {[%clk 0:00:45]} 0-1